[Event "Titled Tuesday Blitz May 30 Early 2023"]
[White "Hambleton, Aman"]
[Black "Roberson, Peter T"]
[WhiteFideId "2606577"]
[BlackFideId "412384"]
[WhiteElo "2511"]
[BlackElo "2346"]
[Result "1-0"]
[Round "06"]
[TimeControl "180+2"]
[Date "2023.05.30"]
[WhiteClock "0:00:03"]
[BlackClock "0:00:00"]

1. d4 {[%clk 0:03:00]}  Nf6 {[%clk 0:02:59]} 2. Bf4 {[%clk 0:03:00]}  b6 {[%clk 0:02:58]} 3. e3 {[%clk 0:03:00]}  Bb7 {[%clk 0:02:59]} 4. h3 {[%clk 0:03:01]}  g6 {[%clk 0:02:59]} 5. Nf3 {[%clk 0:03:01]}  Bg7 {[%clk 0:02:59]} 6. a4 {[%clk 0:03:02]}  O-O {[%clk 0:03:00]} 7. a5 {[%clk 0:03:02]}  d6 {[%clk 0:03:01]} 8. a6 {[%clk 0:03:01]}  Bc8 {[%clk 0:03:01]} 9. c3 {[%clk 0:03:00]}  c6 {[%clk 0:03:00]} 10. Bh2 {[%clk 0:02:57]}  b5 {[%clk 0:03:00]} 11. c4 {[%clk 0:02:56]}  Bxa6 {[%clk 0:02:59]} 12. c5 {[%clk 0:02:03]}  dxc5 {[%clk 0:02:53]} 13. Bxb8 {[%clk 0:02:02]}  Qxb8 {[%clk 0:02:21]} 14. Rxa6 {[%clk 0:02:01]}  cxd4 {[%clk 0:02:22]} 15. exd4 {[%clk 0:01:56]}  Nd5 {[%clk 0:02:12]} 16. Nc3 {[%clk 0:01:32]}  Nxc3 {[%clk 0:01:47]} 17. bxc3 {[%clk 0:01:33]}  b4 {[%clk 0:01:48]} 18. Be2 {[%clk 0:00:46]}  c5 {[%clk 0:01:19]} 19. O-O {[%clk 0:00:43]}  cxd4 {[%clk 0:01:15]} 20. cxd4 {[%clk 0:00:38]}  Rd8 {[%clk 0:01:15]} 21. Qd2 {[%clk 0:00:14]}  Qb7 {[%clk 0:01:08]} 22. Rd1 {[%clk 0:00:13]}  b3 {[%clk 0:01:03]} 23. Qe3 {[%clk 0:00:06]}  b2 {[%clk 0:00:57]} 24. Rb1 {[%clk 0:00:04]}  Rab8 {[%clk 0:00:58]} 25. Ra2 {[%clk 0:00:04]}  Rdc8 {[%clk 0:00:25]} 26. g3 {[%clk 0:00:03]}  Rc2 {[%clk 0:00:16]} 27. Bd1 {[%clk 0:00:03]}  Rc4 {[%clk 0:00:09]} 28. Raxb2 {[%clk 0:00:02]}  Qxb2 {[%clk 0:00:10]} 29. Rxb2 {[%clk 0:00:03]}  Rxb2 {[%clk 0:00:11]} 30. Kg2 {[%clk 0:00:03]}  Rc7 {[%clk 0:00:07]} 31. d5 {[%clk 0:00:03]}  Bf6 {[%clk 0:00:07]} 32. g4 {[%clk 0:00:02]}  Rb1 {[%clk 0:00:05]} 33. Be2 {[%clk 0:00:02]}  Rb2 {[%clk 0:00:05]} 34. g5 {[%clk 0:00:03]}  Bg7 {[%clk 0:00:05]} 35. d6 {[%clk 0:00:03]}  exd6 {[%clk 0:00:05]} 36. Qe8+ {[%clk 0:00:03]}  Bf8 {[%clk 0:00:06]} 37. Bd3 {[%clk 0:00:03]}  Rc3 {[%clk 0:00:03]} 38. Be4 {[%clk 0:00:03]}  Rb4 {[%clk 0:00:01]} 39. Bd5 {[%clk 0:00:03]}  Rc7 {[%clk 0:00:01]} 40. Qa8 {[%clk 0:00:03]}  Re7 {[%clk 0:00:02]} 41. Nh2 {[%clk 0:00:03]}  Rb2 {[%clk 0:00:02]} 42. Ng4 {[%clk 0:00:03]}  h5 {[%clk 0:00:02]} 43. Nh6+ {[%clk 0:00:02]}  Kg7 {[%clk 0:00:02]} 44. Nxf7 {[%clk 0:00:02]}  Rxf7 {[%clk 0:00:02]} 45. Bxf7 {[%clk 0:00:03]}  Kxf7 {[%clk 0:00:02]} 46. Qxa7+ {[%clk 0:00:04]}  Be7 {[%clk 0:00:02]} 47. Qe3 {[%clk 0:00:04]}  Rb5 {[%clk 0:00:02]} 48. h4 {[%clk 0:00:03]}  Rf5 {[%clk 0:00:02]} 49. Qe4 {[%clk 0:00:04]}  d5 {[%clk 0:00:02]} 50. Qd3 {[%clk 0:00:04]}  Bf8 {[%clk 0:00:02]} 51. Qa6 {[%clk 0:00:04]}  Be7 {[%clk 0:00:03]} 52. Qc6 {[%clk 0:00:04]}  Bf8 {[%clk 0:00:03]} 53. Kg3 {[%clk 0:00:03]}  Be7 {[%clk 0:00:04]} 54. Qd7 {[%clk 0:00:03]}  Re5 {[%clk 0:00:03]} 55. f4 {[%clk 0:00:02]}  Rf5 {[%clk 0:00:03]} 56. Kf3 {[%clk 0:00:03]}  Kf8 {[%clk 0:00:00]} 57. Qe6 {[%clk 0:00:03]} 1-0


[Site "https://www.chess.com"]

[Event "Titled Tuesday Blitz May 30 Early 2023"]
[White "Belov, Alexei"]
[Black "Fernandez Guillen, Ernesto J."]
[WhiteFideId "4128206"]
[BlackFideId "3512428"]
[WhiteElo "2555"]
[BlackElo "2429"]
[Result "0-1"]
[Round "06"]
[TimeControl "180+2"]
[Date "2023.05.30"]
[WhiteClock "0:00:22"]
[BlackClock "0:00:40"]

1. e4 {[%clk 0:03:00]}  e5 {[%clk 0:02:51]} 2. Nf3 {[%clk 0:03:00]}  Nc6 {[%clk 0:02:49]} 3. Bb5 {[%clk 0:03:00]}  f5 {[%clk 0:02:46]} 4. Nc3 {[%clk 0:03:00]}  Nf6 {[%clk 0:02:45]} 5. Qe2 {[%clk 0:02:59]}  Qe7 {[%clk 0:02:36]} 6. d3 {[%clk 0:02:52]}  Nd4 {[%clk 0:02:32]} 7. Nxd4 {[%clk 0:02:44]}  exd4 {[%clk 0:02:33]} 8. Nd5 {[%clk 0:02:44]}  Nxd5 {[%clk 0:02:32]} 9. exd5 {[%clk 0:02:44]}  Qxe2+ {[%clk 0:02:33]} 10. Kxe2 {[%clk 0:02:44]}  c6 {[%clk 0:02:25]} 11. dxc6 {[%clk 0:02:34]}  bxc6 {[%clk 0:02:26]} 12. Ba4 {[%clk 0:02:33]}  Rb8 {[%clk 0:02:22]} 13. Bf4 {[%clk 0:02:18]}  Rb4 {[%clk 0:02:11]} 14. Bb3 {[%clk 0:02:13]}  d5 {[%clk 0:02:12]} 15. c3 {[%clk 0:02:09]}  dxc3 {[%clk 0:02:11]} 16. Bc1 {[%clk 0:02:06]}  cxb2 {[%clk 0:02:11]} 17. Bxb2 {[%clk 0:02:07]}  Ba6 {[%clk 0:02:07]} 18. Rac1 {[%clk 0:01:59]}  Kd7 {[%clk 0:01:59]} 19. Kd2 {[%clk 0:01:51]}  Bd6 {[%clk 0:01:56]} 20. g3 {[%clk 0:01:51]}  Rg8 {[%clk 0:01:52]} 21. Rhe1 {[%clk 0:01:48]}  g6 {[%clk 0:01:50]} 22. f4 {[%clk 0:01:31]}  Rgb8 {[%clk 0:01:43]} 23. Bc3 {[%clk 0:01:29]}  R4b7 {[%clk 0:01:25]} 24. Be5 {[%clk 0:01:22]}  Bb4+ {[%clk 0:01:23]} 25. Bc3 {[%clk 0:01:21]}  Re8 {[%clk 0:01:21]} 26. Rxe8 {[%clk 0:01:14]}  Kxe8 {[%clk 0:01:16]} 27. Bxb4 {[%clk 0:01:12]}  Rxb4 {[%clk 0:01:17]} 28. Re1+ {[%clk 0:01:12]}  Kd7 {[%clk 0:01:16]} 29. Kc3 {[%clk 0:01:12]}  Rb8 {[%clk 0:01:12]} 30. d4 {[%clk 0:01:11]}  Kd6 {[%clk 0:01:13]} 31. Re5 {[%clk 0:01:08]}  h6 {[%clk 0:01:09]} 32. h4 {[%clk 0:01:07]}  h5 {[%clk 0:01:09]} 33. Re3 {[%clk 0:01:05]}  Rf8 {[%clk 0:01:06]} 34. Re5 {[%clk 0:01:05]}  Bc8 {[%clk 0:01:06]} 35. Kb4 {[%clk 0:01:02]}  Ba6 {[%clk 0:01:05]} 36. Ka5 {[%clk 0:00:59]}  Bd3 {[%clk 0:01:05]} 37. Kb4 {[%clk 0:00:59]}  Be4 {[%clk 0:01:05]} 38. Kc3 {[%clk 0:00:57]}  Rc8 {[%clk 0:01:04]} 39. Kd2 {[%clk 0:00:56]}  a5 {[%clk 0:01:02]} 40. Kc3 {[%clk 0:00:52]}  Rb8 {[%clk 0:01:01]} 41. Kd2 {[%clk 0:00:52]}  a4 {[%clk 0:00:59]} 42. Bxa4 {[%clk 0:00:49]}  Rb2+ {[%clk 0:00:59]} 43. Kc3 {[%clk 0:00:47]}  Rxa2 {[%clk 0:01:00]} 44. Bb3 {[%clk 0:00:42]}  Rg2 {[%clk 0:01:00]} 45. Re8 {[%clk 0:00:42]}  Rxg3+ {[%clk 0:00:58]} 46. Kb4 {[%clk 0:00:43]}  Rg4 {[%clk 0:00:57]} 47. Rd8+ {[%clk 0:00:41]}  Kc7 {[%clk 0:00:57]} 48. Rg8 {[%clk 0:00:41]}  Kd6 {[%clk 0:00:42]} 49. Rd8+ {[%clk 0:00:40]}  Ke7 {[%clk 0:00:43]} 50. Rg8 {[%clk 0:00:37]}  Kf7 {[%clk 0:00:42]} 51. Rc8 {[%clk 0:00:37]}  Rxh4 {[%clk 0:00:42]} 52. Rc7+ {[%clk 0:00:38]}  Kf6 {[%clk 0:00:41]} 53. Rxc6+ {[%clk 0:00:38]}  Kg7 {[%clk 0:00:42]} 54. Kc5 {[%clk 0:00:34]}  Rxf4 {[%clk 0:00:43]} 55. Bxd5 {[%clk 0:00:34]}  Bxd5 {[%clk 0:00:44]} 56. Kxd5 {[%clk 0:00:34]}  h4 {[%clk 0:00:44]} 57. Kc5 {[%clk 0:00:33]}  h3 {[%clk 0:00:43]} 58. Ra6 {[%clk 0:00:32]}  g5 {[%clk 0:00:41]} 59. d5 {[%clk 0:00:32]}  Rf1 {[%clk 0:00:41]} 60. Ra2 {[%clk 0:00:28]}  Rd1 {[%clk 0:00:40]} 61. d6 {[%clk 0:00:28]}  g4 {[%clk 0:00:41]} 62. Rf2 {[%clk 0:00:26]}  Kg6 {[%clk 0:00:40]} 63. Kc6 {[%clk 0:00:26]}  Kg5 {[%clk 0:00:40]} 64. d7 {[%clk 0:00:26]}  g3 {[%clk 0:00:40]} 65. Rf3 {[%clk 0:00:26]}  f4 {[%clk 0:00:40]} 66. Rc3 {[%clk 0:00:24]}  Rxd7 {[%clk 0:00:40]} 67. Kxd7 {[%clk 0:00:24]}  h2 {[%clk 0:00:41]} 68. Rc1 {[%clk 0:00:22]}  g2 {[%clk 0:00:41]} 69. Ke6 {[%clk 0:00:22]}  g1=Q {[%clk 0:00:40]} 0-1


[Site "https://www.chess.com"]

[Event "Titled Tuesday Blitz May 30 Early 2023"]
[White "Karthik Rajaa"]
[Black "WindWhistler11"]
[WhiteFideId "25035215"]
[WhiteElo "2215"]
[BlackElo "2547"]
[Result "1-0"]
[Round "06"]
[TimeControl "180+2"]
[Date "2023.05.30"]
[WhiteClock "0:01:09"]
[BlackClock "0:00:12"]

1. Nf3 {[%clk 0:03:00]}  Nf6 {[%clk 0:02:58]} 2. b3 {[%clk 0:03:00]}  d6 {[%clk 0:02:58]} 3. d4 {[%clk 0:02:57]}  g6 {[%clk 0:02:52]} 4. g3 {[%clk 0:02:58]}  Bg7 {[%clk 0:02:52]} 5. Bg2 {[%clk 0:02:59]}  O-O {[%clk 0:02:53]} 6. O-O {[%clk 0:02:59]}  a5 {[%clk 0:02:52]} 7. Bb2 {[%clk 0:02:59]}  a4 {[%clk 0:02:52]} 8. c4 {[%clk 0:03:00]}  axb3 {[%clk 0:02:40]} 9. axb3 {[%clk 0:02:59]}  Rxa1 {[%clk 0:02:40]} 10. Bxa1 {[%clk 0:02:59]}  c6 {[%clk 0:02:39]} 11. Nbd2 {[%clk 0:02:49]}  Na6 {[%clk 0:02:38]} 12. Bc3 {[%clk 0:02:48]}  Qb6 {[%clk 0:02:34]} 13. Qa1 {[%clk 0:02:12]}  Bf5 {[%clk 0:02:29]} 14. Nh4 {[%clk 0:02:12]}  Bg4 {[%clk 0:02:26]} 15. h3 {[%clk 0:02:00]}  Bc8 {[%clk 0:01:55]} 16. e4 {[%clk 0:01:56]}  c5 {[%clk 0:01:43]} 17. d5 {[%clk 0:01:45]}  Nb4 {[%clk 0:01:32]} 18. e5 {[%clk 0:01:43]}  dxe5 {[%clk 0:01:21]} 19. Bxe5 {[%clk 0:01:44]}  Nc2 {[%clk 0:01:21]} 20. Qb2 {[%clk 0:01:30]}  Nb4 {[%clk 0:01:18]} 21. Qc3 {[%clk 0:01:26]}  Bd7 {[%clk 0:01:13]} 22. Ra1 {[%clk 0:01:19]}  Ne8 {[%clk 0:00:46]} 23. Bxg7 {[%clk 0:01:18]}  Nxg7 {[%clk 0:00:47]} 24. Re1 {[%clk 0:01:17]}  Re8 {[%clk 0:00:41]} 25. Ne4 {[%clk 0:01:13]}  Bf5 {[%clk 0:00:17]} 26. Nxf5 {[%clk 0:01:10]}  Nxf5 {[%clk 0:00:17]} 27. Nf6+ {[%clk 0:01:10]}  Kf8 {[%clk 0:00:12]} 28. Nd7+ {[%clk 0:01:09]} 1-0


[Site "https://www.chess.com"]

[Event "Titled Tuesday Blitz May 30 Early 2023"]
[White "Moral Garcia, Serafin"]
[Black "egorchess95"]
[WhiteFideId "2201925"]
[WhiteElo "2274"]
[BlackElo "2702"]
[Result "0-1"]
[Round "06"]
[TimeControl "180+2"]
[Date "2023.05.30"]
[WhiteClock "0:00:00"]
[BlackClock "0:01:49"]

1. e4 {[%clk 0:03:00]}  c5 {[%clk 0:02:52]} 2. Nf3 {[%clk 0:02:59]}  Nc6 {[%clk 0:02:53]} 3. Bb5 {[%clk 0:02:58]}  g5 {[%clk 0:02:52]} 4. Bxc6 {[%clk 0:02:53]}  dxc6 {[%clk 0:02:49]} 5. Nxg5 {[%clk 0:02:49]}  Nf6 {[%clk 0:02:48]} 6. d3 {[%clk 0:02:44]}  Rg8 {[%clk 0:02:47]} 7. O-O {[%clk 0:02:01]}  h6 {[%clk 0:02:45]} 8. Nf3 {[%clk 0:02:02]}  Bh3 {[%clk 0:02:46]} 9. Ne1 {[%clk 0:02:00]}  Qd7 {[%clk 0:02:46]} 10. Kh1 {[%clk 0:01:58]}  Be6 {[%clk 0:02:47]} 11. Nc3 {[%clk 0:01:55]}  O-O-O {[%clk 0:02:47]} 12. Be3 {[%clk 0:01:54]}  c4 {[%clk 0:02:41]} 13. f4 {[%clk 0:01:47]}  Bg4 {[%clk 0:02:40]} 14. Qd2 {[%clk 0:01:47]}  cxd3 {[%clk 0:02:35]} 15. cxd3 {[%clk 0:01:44]}  Kb8 {[%clk 0:02:35]} 16. Qf2 {[%clk 0:01:41]}  a6 {[%clk 0:02:31]} 17. Na4 {[%clk 0:01:39]}  e6 {[%clk 0:02:28]} 18. Bc5 {[%clk 0:01:36]}  Bxc5 {[%clk 0:02:13]} 19. Nxc5 {[%clk 0:01:34]}  Qd4 {[%clk 0:02:14]} 20. h3 {[%clk 0:01:24]}  Bh5 {[%clk 0:02:07]} 21. Qxd4 {[%clk 0:00:08]}  Rxd4 {[%clk 0:02:08]} 22. Nc2 {[%clk 0:00:08]}  Rdd8 {[%clk 0:02:06]} 23. d4 {[%clk 0:00:08]}  b6 {[%clk 0:02:04]} 24. Nxa6+ {[%clk 0:00:08]}  Kb7 {[%clk 0:02:04]} 25. Nab4 {[%clk 0:00:07]}  Nxe4 {[%clk 0:02:04]} 26. Kh2 {[%clk 0:00:07]}  c5 {[%clk 0:02:01]} 27. Nd3 {[%clk 0:00:07]}  cxd4 {[%clk 0:02:01]} 28. Rae1 {[%clk 0:00:06]}  f5 {[%clk 0:01:59]} 29. Nf2 {[%clk 0:00:06]}  d3 {[%clk 0:01:58]} 30. Ne3 {[%clk 0:00:05]}  Nxf2 {[%clk 0:01:57]} 31. Rxf2 {[%clk 0:00:05]}  d2 {[%clk 0:01:58]} 32. Rg1 {[%clk 0:00:04]}  Rd3 {[%clk 0:01:58]} 33. Nd1 {[%clk 0:00:04]}  Rc8 {[%clk 0:01:58]} 34. g4 {[%clk 0:00:03]}  Bg6 {[%clk 0:01:55]} 35. Rg3 {[%clk 0:00:03]}  Rd5 {[%clk 0:01:51]} 36. Rc3 {[%clk 0:00:03]}  Rcd8 {[%clk 0:01:51]} 37. g5 {[%clk 0:00:02]}  Bh5 {[%clk 0:01:50]} 38. Rf1 {[%clk 0:00:02]}  hxg5 {[%clk 0:01:48]} 39. fxg5 {[%clk 0:00:00]}  Re5 {[%clk 0:01:49]} 0-1


[Site "https://www.chess.com"]

[Event "Titled Tuesday Blitz May 30 Early 2023"]
[White "Kucuksari, Kaan"]
[Black "Sadovsky, Artem"]
[WhiteFideId "6380166"]
[BlackFideId "4155840"]
[WhiteElo "2364"]
[BlackElo "2314"]
[Result "0-1"]
[Round "06"]
[TimeControl "180+2"]
[Date "2023.05.30"]
[WhiteClock "0:00:04"]
[BlackClock "0:00:12"]

1. d4 {[%clk 0:03:00]}  g6 {[%clk 0:03:00]} 2. c4 {[%clk 0:02:59]}  Bg7 {[%clk 0:03:00]} 3. Nf3 {[%clk 0:02:59]}  d6 {[%clk 0:03:01]} 4. Nc3 {[%clk 0:02:59]}  e5 {[%clk 0:03:00]} 5. d5 {[%clk 0:02:58]}  f5 {[%clk 0:02:59]} 6. e4 {[%clk 0:02:57]}  Nf6 {[%clk 0:02:59]} 7. Bd3 {[%clk 0:02:54]}  O-O {[%clk 0:02:59]} 8. Ng5 {[%clk 0:02:51]}  a5 {[%clk 0:02:58]} 9. O-O {[%clk 0:02:49]}  Na6 {[%clk 0:02:58]} 10. exf5 {[%clk 0:02:43]}  gxf5 {[%clk 0:02:56]} 11. Ne6 {[%clk 0:02:43]}  Bxe6 {[%clk 0:02:55]} 12. dxe6 {[%clk 0:02:44]}  e4 {[%clk 0:02:55]} 13. Be2 {[%clk 0:02:44]}  Nc5 {[%clk 0:02:55]} 14. Nd5 {[%clk 0:02:39]}  Nxe6 {[%clk 0:02:54]} 15. Qb3 {[%clk 0:02:38]}  Nd4 {[%clk 0:02:51]} 16. Qd1 {[%clk 0:02:37]}  Nxd5 {[%clk 0:02:48]} 17. cxd5 {[%clk 0:02:37]}  f4 {[%clk 0:02:44]} 18. Bg4 {[%clk 0:02:37]}  Qg5 {[%clk 0:02:44]} 19. g3 {[%clk 0:02:21]}  Qxd5 {[%clk 0:02:29]} 20. Bxf4 {[%clk 0:02:19]}  Rxf4 {[%clk 0:02:23]} 21. gxf4 {[%clk 0:02:20]}  Rf8 {[%clk 0:02:23]} 22. f5 {[%clk 0:02:01]}  h5 {[%clk 0:02:18]} 23. Bh3 {[%clk 0:01:57]}  Rxf5 {[%clk 0:02:15]} 24. Bxf5 {[%clk 0:01:56]}  Qxf5 {[%clk 0:02:16]} 25. Kh1 {[%clk 0:01:21]}  Nf3 {[%clk 0:02:12]} 26. Rg1 {[%clk 0:01:10]}  Kh8 {[%clk 0:01:24]} 27. Rg2 {[%clk 0:01:04]}  d5 {[%clk 0:00:59]} 28. Qb3 {[%clk 0:01:00]}  b6 {[%clk 0:00:53]} 29. Rd1 {[%clk 0:01:00]}  d4 {[%clk 0:00:48]} 30. Rc1 {[%clk 0:00:50]}  Qf4 {[%clk 0:00:43]} 31. Rc6 {[%clk 0:00:47]}  e3 {[%clk 0:00:37]} 32. Re6 {[%clk 0:00:22]}  Ng5 {[%clk 0:00:15]} 33. Re8+ {[%clk 0:00:20]}  Kh7 {[%clk 0:00:16]} 34. Qg8+ {[%clk 0:00:13]}  Kh6 {[%clk 0:00:16]} 35. Re7 {[%clk 0:00:07]}  Qf6 {[%clk 0:00:12]} 36. Rxg7 {[%clk 0:00:05]}  Qxg7 {[%clk 0:00:11]} 37. Qxg7+ {[%clk 0:00:05]}  Kxg7 {[%clk 0:00:12]} 38. Rxg5+ {[%clk 0:00:06]}  Kf6 {[%clk 0:00:12]} 39. Rd5 {[%clk 0:00:06]}  e2 {[%clk 0:00:12]} 40. Kg2 {[%clk 0:00:04]}  e1=Q {[%clk 0:00:12]} 0-1


[Site "https://www.chess.com"]

[Event "Titled Tuesday Blitz May 30 Early 2023"]
[White "Mendez Fortes, Eduardo Jesus"]
[Black "Ozates, Tuna"]
[WhiteFideId "3502376"]
[BlackFideId "6354521"]
[WhiteElo "2307"]
[BlackElo "2151"]
[Result "0-1"]
[Round "06"]
[TimeControl "180+2"]
[Date "2023.05.30"]
[WhiteClock "0:00:12"]
[BlackClock "0:01:21"]

1. e4 {[%clk 0:03:00]}  Nf6 {[%clk 0:02:57]} 2. e5 {[%clk 0:03:01]}  Nd5 {[%clk 0:02:58]} 3. d4 {[%clk 0:03:01]}  d6 {[%clk 0:02:58]} 4. Nf3 {[%clk 0:03:02]}  dxe5 {[%clk 0:02:58]} 5. Nxe5 {[%clk 0:03:03]}  c6 {[%clk 0:02:59]} 6. Bc4 {[%clk 0:03:03]}  Nd7 {[%clk 0:02:55]} 7. Nd3 {[%clk 0:02:56]}  N7f6 {[%clk 0:02:52]} 8. O-O {[%clk 0:02:54]}  Bg4 {[%clk 0:02:51]} 9. Qe1 {[%clk 0:02:44]}  e6 {[%clk 0:02:50]} 10. c3 {[%clk 0:02:44]}  Be7 {[%clk 0:02:50]} 11. Ne5 {[%clk 0:02:45]}  Bh5 {[%clk 0:02:50]} 12. Nd2 {[%clk 0:02:45]}  O-O {[%clk 0:02:50]} 13. f4 {[%clk 0:02:43]}  c5 {[%clk 0:02:46]} 14. Nb3 {[%clk 0:02:27]}  cxd4 {[%clk 0:02:46]} 15. Nxd4 {[%clk 0:02:28]}  Rc8 {[%clk 0:02:43]} 16. Bb3 {[%clk 0:02:25]}  Bc5 {[%clk 0:02:27]} 17. Kh1 {[%clk 0:02:25]}  Bg6 {[%clk 0:02:18]} 18. f5 {[%clk 0:02:02]}  exf5 {[%clk 0:02:14]} 19. Nxf5 {[%clk 0:02:03]}  Re8 {[%clk 0:02:12]} 20. Qg3 {[%clk 0:01:57]}  Bd6 {[%clk 0:02:10]} 21. Nxd6 {[%clk 0:01:36]}  Qxd6 {[%clk 0:02:04]} 22. Nxg6 {[%clk 0:01:16]}  Qxg3 {[%clk 0:01:56]} 23. hxg3 {[%clk 0:01:16]}  hxg6 {[%clk 0:01:55]} 24. Bg5 {[%clk 0:01:12]}  Re2 {[%clk 0:01:45]} 25. Rfd1 {[%clk 0:00:50]}  Ne3 {[%clk 0:01:39]} 26. Rd3 {[%clk 0:00:45]}  Nxg2 {[%clk 0:01:36]} 27. Rg1 {[%clk 0:00:43]}  Ne1 {[%clk 0:01:34]} 28. Bd2 {[%clk 0:00:27]}  Rce8 {[%clk 0:01:25]} 29. Bd1 {[%clk 0:00:12]}  Nxd3 {[%clk 0:01:21]} 0-1


[Site "https://www.chess.com"]

[Event "Titled Tuesday Blitz May 30 Early 2023"]
[White "Sowul, Bartosz"]
[Black "Shuvalova, Polina"]
[WhiteFideId "1137590"]
[BlackFideId "24171760"]
[WhiteElo "2188"]
[BlackElo "2281"]
[Result "0-1"]
[Round "06"]
[TimeControl "180+2"]
[Date "2023.05.30"]
[WhiteClock "0:00:00"]
[BlackClock "0:00:07"]

1. e4 {[%clk 0:02:57]}  c6 {[%clk 0:02:58]} 2. d4 {[%clk 0:02:57]}  d5 {[%clk 0:02:59]} 3. e5 {[%clk 0:02:58]}  Bf5 {[%clk 0:02:58]} 4. h4 {[%clk 0:02:58]}  h5 {[%clk 0:02:57]} 5. Bd3 {[%clk 0:02:58]}  Bxd3 {[%clk 0:02:58]} 6. Qxd3 {[%clk 0:02:59]}  Qa5+ {[%clk 0:02:58]} 7. Nd2 {[%clk 0:02:58]}  e6 {[%clk 0:02:55]} 8. Nf3 {[%clk 0:02:57]}  Qa6 {[%clk 0:02:54]} 9. c4 {[%clk 0:02:56]}  Bb4 {[%clk 0:02:52]} 10. O-O {[%clk 0:02:48]}  Bxd2 {[%clk 0:02:51]} 11. Nxd2 {[%clk 0:02:44]}  Ne7 {[%clk 0:02:51]} 12. Qe2 {[%clk 0:02:08]}  Nd7 {[%clk 0:02:46]} 13. b3 {[%clk 0:02:04]}  Nf5 {[%clk 0:02:40]} 14. Nf3 {[%clk 0:02:02]}  O-O-O {[%clk 0:02:22]} 15. a4 {[%clk 0:01:55]}  dxc4 {[%clk 0:02:18]} 16. Bg5 {[%clk 0:01:45]}  f6 {[%clk 0:02:02]} 17. exf6 {[%clk 0:01:42]}  gxf6 {[%clk 0:02:00]} 18. Bf4 {[%clk 0:01:41]}  Rhe8 {[%clk 0:01:52]} 19. Rfc1 {[%clk 0:01:35]}  Nb6 {[%clk 0:01:49]} 20. a5 {[%clk 0:01:28]}  Nd5 {[%clk 0:01:48]} 21. Bh2 {[%clk 0:01:18]}  cxb3 {[%clk 0:01:40]} 22. Qb2 {[%clk 0:01:08]}  Nc7 {[%clk 0:01:15]} 23. Qxb3 {[%clk 0:00:48]}  Nxd4 {[%clk 0:01:11]} 24. Nxd4 {[%clk 0:00:44]}  Rxd4 {[%clk 0:01:12]} 25. Qf3 {[%clk 0:00:42]}  Nd5 {[%clk 0:00:55]} 26. Qxh5 {[%clk 0:00:39]}  Rd8 {[%clk 0:00:55]} 27. Qf7 {[%clk 0:00:35]}  e5 {[%clk 0:00:52]} 28. Rab1 {[%clk 0:00:32]}  Nc3 {[%clk 0:00:43]} 29. Qe6+ {[%clk 0:00:27]}  Kb8 {[%clk 0:00:40]} 30. Bxe5+ {[%clk 0:00:25]}  fxe5 {[%clk 0:00:40]} 31. Qxe5+ {[%clk 0:00:25]}  Ka8 {[%clk 0:00:40]} 32. Rxc3 {[%clk 0:00:24]}  Rxh4 {[%clk 0:00:33]} 33. Re1 {[%clk 0:00:20]}  Rhh8 {[%clk 0:00:27]} 34. Rg3 {[%clk 0:00:18]}  Qc4 {[%clk 0:00:25]} 35. Rg7 {[%clk 0:00:16]}  a6 {[%clk 0:00:17]} 36. Rb1 {[%clk 0:00:13]}  Rb8 {[%clk 0:00:18]} 37. Re1 {[%clk 0:00:09]}  Qb5 {[%clk 0:00:17]} 38. Qc7 {[%clk 0:00:08]}  Qh5 {[%clk 0:00:15]} 39. Kf1 {[%clk 0:00:03]}  Qh1+ {[%clk 0:00:15]} 40. Ke2 {[%clk 0:00:04]}  Rhe8+ {[%clk 0:00:14]} 41. Kf3 {[%clk 0:00:04]}  Qxe1 {[%clk 0:00:09]} 42. Qb6 {[%clk 0:00:02]}  Qe4+ {[%clk 0:00:07]} 43. Kg3 {[%clk 0:00:02]}  Qe5+ {[%clk 0:00:06]} 44. Kf3 {[%clk 0:00:00]}  Qxg7 {[%clk 0:00:07]} 0-1


[Site "https://www.chess.com"]